[Event "XII Paracin Festival 2019"]
[Site "Paracin"]
[Date "2019.07.09"]
[Round "5.24"]
[White "Kosmidis, Ioannis"]
[Black "Harvey, Marcus R"]
[Result "0-1"]
[ECO "A40"]
[WhiteElo "2100"]
[BlackElo "2402"]
[Annotator "NA"]
[PlyCount "92"]
[EventDate "2019.07.05"]
[EventType "swiss"]
[EventCountry "SRB"]
[SourceTitle "playchess.com"]
[Source "ChessBase"]
[SourceQuality "1"]
[TimeControl "5400+30"]

1. d4 Nf6 {[%emt 0:04:16]} 2. c4 {[%emt 0:00:27]} e6 {[%emt 0:00:10]} 3. g3 {[%emt 0:00:35]} Bb4+ {[%emt 0:00:05]} 4. Bd2 {[%emt 0:01:05]} Be7 {[%emt 0:00:12]} 5. Bg2 {[%emt 0:01:12]} d5 {[%emt 0:00:06]} 6. Nf3 {[%emt 0:02:48]} dxc4 {[%emt 0:01:03]} 7. Qa4+ {[%emt 0:04:05]} Nbd7 {[%emt 0:01:14]} 8. Qxc4 {[%emt 0:00:20]} Rb8 {[%emt 0:11:30]} 9. Nc3 {[%emt 0:03:30]} a6 {[%emt 0:00:19]} 10. a4 {[%emt 0:08:51]} O-O {[%emt 0:02:11]} 11. O-O {[%emt 0:01:34]} Nb6 {[%emt 0:04:45]} 12. Qb3 {[%emt 0:04:44]} Nbd5 {[%emt 0:02:36]} 13. Nxd5 {[%emt 0:10:38]} exd5 {[%emt 0:03:06]} 14. Ne5 {[%emt 0:02:17]} Be6 {[%emt 0:01:42]} 15. Bb4 {[%emt 0:05:03]} Ne4 {[%emt 0:04:50]} 16. Bxe7 {[%emt 0:08:03]} Qxe7 {[%emt 0:00:03]} 17. Rfd1 {[%emt 0:03:07]} c6 {[%emt 0:02:25]} 18. Qa3 {[%emt 0:06:58]} Qc7 {[%emt 0:01:52]} 19. Rac1 {[%emt 0:01:26]} Nd6 {[%emt 0:01:20]} 20. b3 {[%emt 0:03:37]} Rbd8 {[%emt 0:02:49]} 21. e3 {[%emt 0:03:07]} Qb8 {[%emt 0:10:11]} 22. b4 {[%emt 0:06:35]} Bf5 {[%emt 0:01:42]} 23. Qb3 {[%emt 0:03:42]} Rfe8 {[%emt 0:04:29]} 24. Bf1 {[%emt 0:07:37]} f6 {[%emt 0:00:04]} 25. Nd3 {[%emt 0:00:13]} Bg4 {[%emt 0:00:06]} 26. Re1 {[%emt 0:01:30]} Bf3 {[%emt 0:00:22]} 27. Nc5 {[%emt 0:01:27]} Qc8 {[%emt 0:05:18]} 28. Bg2 {[%emt 0:02:18]} Bxg2 {[%emt 0:00:42]} 29. Kxg2 {[%emt 0:00:01]} Kh8 {[%emt 0:01:20]} 30. Qd3 {[%emt 0:02:17]} Re7 {[%emt 0:01:28]} 31. Nb3 {[%emt 0:01:42]} Qg4 {[%emt 0:00:39]} 32. Qe2 {[%emt 0:02:44]} Qg6 {[%emt 0:01:56]} 33. Nd2 {[%emt 0:01:09]} Rde8 {[%emt 0:00:49]} 34. Nf3 {[%emt 0:01:07]} Qe4 {[%emt 0:00:28]} 35. Qc2 {[%emt 0:00:22]} Qe6 {[%emt 0:00:07]} 36. Nd2 {[%emt 0:00:40]} g6 {[%emt 0:01:02]} 37. Rb1 {[%emt 0:00:15]} Kg7 {[%emt 0:00:05]} 38. Qd3 {[%emt 0:00:43]} Qg4 {[%emt 0:00:45]} 39. h3 {[%emt 0:00:58]} Qe6 {[%emt 0:00:31]} 40. Rbc1 {[%emt 0:00:31]} g5 {[%emt 0:01:19]} 41. Nf3 {[%emt 0:00:32]} Ne4 {[%emt 0:00:45]} 42. b5 {[%emt 0:00:25]} axb5 {[%emt 0:00:10]} 43. axb5 {[%emt 0:00:05]} Qxh3+ {[%emt 0:00:05]} 44. Kg1 {[%emt 0:00:45]} Nxg3 {[%emt 0:00:30]} 45. fxg3 {[%emt 0:00:17]} Qxg3+ {[%emt 0:00:07]} 46. Kh1 {[%emt 0:00:06]} Qxf3+ {[%emt 0:00:05]} 0-1

[Event "XII Paracin Festival 2019"]
[Site "Paracin"]
[Date "2019.07.09"]
[Round "5.25"]
[White "Liu, Zhaoqi"]
[Black "Pasti, Aron"]
[Result "1-0"]
[ECO "A22"]
[WhiteElo "2386"]
[BlackElo "2209"]
[Annotator "NA"]
[PlyCount "107"]
[EventDate "2019.07.05"]
[EventType "swiss"]
[EventCountry "SRB"]
[SourceTitle "playchess.com"]
[Source "ChessBase"]
[SourceQuality "1"]
[TimeControl "5400+30"]

1. c4 {[%emt 0:01:33]} e5 {[%emt 0:00:00]} 2. Nc3 {[%emt 0:00:04]} Nf6 {[%emt 0:00:00]} 3. g3 {[%emt 0:00:04]} d5 {[%emt 0:00:00]} 4. cxd5 {[%emt 0:00:04]} Nxd5 {[%emt 0:00:02]} 5. Bg2 {[%emt 0:00:03]} Nb6 {[%emt 0:00:14]} 6. d3 {[%emt 0:00:05]} Be7 {[%emt 0:00:26]} 7. Be3 {[%emt 0:00:06]} Nc6 {[%emt 0:01:27]} 8. Bxc6+ {[%emt 0:00:13]} bxc6 {[%emt 0:00:04]} 9. Nf3 {[%emt 0:00:04]} Bd6 {[%emt 0:02:15]} 10. O-O {[%emt 0:00:39]} O-O {[%emt 0:01:50]} 11. Ne4 {[%emt 0:03:36]} Nd5 {[%emt 0:04:35]} 12. Qc2 {[%emt 0:13:50]} Bd7 {[%emt 0:05:39]} 13. Nc5 {[%emt 0:05:55]} Bh3 {[%emt 0:09:13]} 14. Rfc1 {[%emt 0:01:45]} Qe7 {[%emt 0:07:09]} 15. a3 {[%emt 0:05:37]} Rfb8 {[%emt 0:06:29]} 16. Rab1 {[%emt 0:12:49]} Rb5 {[%emt 0:06:37]} 17. Ne4 {[%emt 0:00:34]} Bd7 {[%emt 0:03:11]} 18. Bg5 {[%emt 0:06:43]} f6 {[%emt 0:01:34]} 19. Bd2 {[%emt 0:01:43]} Rab8 {[%emt 0:03:45]} 20. b4 {[%emt 0:00:44]} Be8 {[%emt 0:05:05]} 21. Kg2 {[%emt 0:02:54]} Kh8 {[%emt 0:02:39]} 22. h4 {[%emt 0:00:52]} R5b6 {[%emt 0:05:21]} 23. Nc5 {[%emt 0:02:52]} Bxc5 {[%emt 0:01:04]} 24. Qxc5 {[%emt 0:00:20]} Qxc5 {[%emt 0:00:32]} 25. Rxc5 {[%emt 0:00:02]} Rb5 {[%emt 0:05:20]} 26. Rbc1 {[%emt 0:05:30]} Rxc5 {[%emt 0:00:39]} 27. Rxc5 {[%emt 0:00:05]} Rb5 {[%emt 0:00:04]} 28. Rc2 {[%emt 0:00:06]} Kg8 {[%emt 0:01:29]} 29. g4 {[%emt 0:06:18]} Kf8 {[%emt 0:02:23]} 30. Kg3 {[%emt 0:00:07]} Ke7 {[%emt 0:00:45]} 31. e4 {[%emt 0:01:28]} Nb6 {[%emt 0:00:37]} 32. d4 {[%emt 0:00:38]} Kd6 {[%emt 0:06:05]} 33. dxe5+ {[%emt 0:01:26]} fxe5 {[%emt 0:00:04]} 34. Be3 {[%emt 0:00:06]} h6 {[%emt 0:02:19]} 35. h5 {[%emt 0:01:48]} a5 {[%emt 0:03:35]} 36. Nh4 {[%emt 0:07:18]} Ke6 {[%emt 0:03:31]} 37. Nf5 {[%emt 0:00:10]} Kf7 {[%emt 0:00:05]} 38. bxa5 {[%emt 0:03:38]} Rxa5 {[%emt 0:00:12]} 39. Bxb6 {[%emt 0:00:42]} cxb6 {[%emt 0:00:03]} 40. Nd6+ {[%emt 0:00:03]} Ke7 {[%emt 0:00:11]} 41. Nxe8 {[%emt 0:00:02]} Rxa3+ {[%emt 0:00:09]} 42. f3 {[%emt 0:00:02]} Kxe8 {[%emt 0:00:06]} 43. Rxc6 {[%emt 0:00:03]} Kf7 {[%emt 0:01:07]} 44. Rxb6 {[%emt 0:00:05]} Ra1 {[%emt 0:00:39]} 45. Rg6 {[%emt 0:00:38]} Ra3 {[%emt 0:02:47]} 46. g5 {[%emt 0:03:43]} hxg5 {[%emt 0:00:28]} 47. Kg4 {[%emt 0:00:46]} Rb3 {[%emt 0:01:02]} 48. Rxg5 {[%emt 0:00:11]} Kf6 {[%emt 0:00:04]} 49. Rf5+ {[%emt 0:00:26]} Ke6 {[%emt 0:00:05]} 50. Kg5 {[%emt 0:00:06]} Rb7 {[%emt 0:01:23]} 51. Kg6 {[%emt 0:00:07]} Ra7 {[%emt 0:00:04]} 52. Kh7 {[%emt 0:00:57]} Rb7 {[%emt 0:01:59]} 53. Rg5 {[%emt 0:00:14]} Rf7 {[%emt 0:00:15]} 54. Rg6+ {Kd5} 1-0

[Event "XII Paracin Festival 2019"]
[Site "Paracin"]
[Date "2019.07.09"]
[Round "5.26"]
[White "Sadykov, Ramil"]
[Black "Gandhi, Anish"]
[Result "0-1"]
[ECO "B50"]
[WhiteElo "2342"]
[BlackElo "2167"]
[Annotator "NA"]
[PlyCount "90"]
[EventDate "2019.07.05"]
[EventType "swiss"]
[EventCountry "SRB"]
[SourceTitle "playchess.com"]
[Source "ChessBase"]
[SourceQuality "1"]
[TimeControl "5400+30"]

1. e4 {[%emt 0:00:40]} c5 {[%emt 0:00:00]} 2. Nf3 {[%emt 0:00:22]} d6 {[%emt 0:00:00]} 3. Bc4 {[%emt 0:00:09]} Nf6 {[%emt 0:00:46]} 4. d3 {[%emt 0:00:02]} g6 {[%emt 0:00:26]} 5. e5 {[%emt 0:01:24]} d5 {[%emt 0:15:17]} 6. Bb3 {[%emt 0:09:31]} Ng8 {[%emt 0:01:20]} 7. h3 {[%emt 0:01:07]} Bg7 {[%emt 0:01:28]} 8. c3 {[%emt 0:04:21]} Nc6 {[%emt 0:01:46]} 9. Bf4 {[%emt 0:01:20]} e6 {[%emt 0:01:45]} 10. O-O {[%emt 0:02:06]} Nge7 {[%emt 0:01:06]} 11. Re1 {[%emt 0:02:35]} O-O {[%emt 0:00:46]} 12. Nbd2 {[%emt 0:00:22]} Rb8 {[%emt 0:04:49]} 13. Nf1 {[%emt 0:05:48]} b5 {[%emt 0:01:29]} 14. Qd2 {[%emt 0:03:53]} d4 {[%emt 0:05:25]} 15. c4 {[%emt 0:17:27]} Na5 {[%emt 0:05:43]} 16. cxb5 {[%emt 0:03:50]} Nxb3 {[%emt 0:01:17]} 17. axb3 {[%emt 0:06:05]} Rxb5 {[%emt 0:03:52]} 18. Bg5 {[%emt 0:06:02]} Qd7 {[%emt 0:05:41]} 19. Bxe7 {[%emt 0:00:52]} Qxe7 {[%emt 0:00:09]} 20. Ra5 {[%emt 0:02:57]} Bh6 {[%emt 0:07:10]} 21. Qxh6 {[%emt 0:08:44]} Rxa5 {[%emt 0:00:37]} 22. N1d2 {[%emt 0:00:19]} Bb7 {[%emt 0:05:39]} 23. Nc4 {[%emt 0:10:29]} Ra6 {[%emt 0:03:14]} 24. Ng5 {[%emt 0:01:38]} f5 {[%emt 0:00:56]} 25. exf6 {[%emt 0:01:43]} Rxf6 {[%emt 0:00:04]} 26. Ne5 {[%emt 0:01:16]} Bd5 {[%emt 0:06:51]} 27. Rc1 {[%emt 0:01:44]} Qg7 {[%emt 0:07:20]} 28. Qxg7+ {[%emt 0:03:40]} Kxg7 {[%emt 0:00:04]} 29. Rxc5 {[%emt 0:00:02]} Rf5 {[%emt 0:05:26]} 30. f4 {[%emt 0:00:24]} Rxf4 {[%emt 0:00:49]} 31. Ng4 {[%emt 0:00:43]} Ra1+ {[%emt 0:02:48]} 32. Kh2 {[%emt 0:01:22]} Rxg4 {[%emt 0:00:05]} 33. hxg4 {[%emt 0:01:24]} Rd1 {[%emt 0:00:03]} 34. Rc7+ {[%emt 0:02:00]} Kf6 {[%emt 0:00:34]} 35. Nxh7+ {[%emt 0:00:03]} Ke5 {[%emt 0:00:20]} 36. Nf8 {[%emt 0:00:15]} Rxd3 {[%emt 0:01:10]} 37. Nxg6+ {[%emt 0:00:26]} Ke4 {[%emt 0:01:51]} 38. Rxa7 {[%emt 0:01:07]} Rxb3 {[%emt 0:00:13]} 39. g5 {[%emt 0:00:41]} d3 {[%emt 0:00:39]} 40. Nh4 {[%emt 0:00:27]} d2 {[%emt 0:00:39]} 41. Ra1 {[%emt 0:00:01]} Ke3 {[%emt 0:00:26]} 42. Nf3 {[%emt 0:00:51]} Bxf3 {[%emt 0:01:14]} 43. gxf3 {[%emt 0:00:01]} Ke2 {[%emt 0:00:06]} 44. Kg3 {[%emt 0:01:06]} Rxf3+ {[%emt 0:00:32]} 45. Kh4 {[%emt 0:00:36]} Rf1 {[%emt 0:00:22]} 0-1

[Event "XII Paracin Festival 2019"]
[Site "Paracin"]
[Date "2019.07.09"]
[Round "5.27"]
[White "Nestorovic, Dejan"]
[Black "Terziev, Dimo"]
[Result "1-0"]
[ECO "E97"]
[WhiteElo "2341"]
[BlackElo "2166"]
[Annotator "NA"]
[PlyCount "95"]
[EventDate "2019.07.05"]
[EventType "swiss"]
[EventCountry "SRB"]
[SourceTitle "playchess.com"]
[Source "ChessBase"]
[SourceQuality "1"]
[TimeControl "5400+30"]

1. d4 Nf6 2. c4 g6 3. Nc3 Bg7 4. e4 d6 5. Nf3 O-O 6. Be2 e5 7. O-O Nc6 8. d5 Ne7 9. Bg5 Nd7 10. b4 f5 11. Qd2 f4 12. Ne1 h6 13. Bxe7 Qxe7 14. Bg4 a5 15. bxa5 Nc5 16. Bxc8 Rfxc8 17. f3 Rxa5 18. Nd3 Rca8 19. Rab1 b6 20. Rb5 Bf8 21. Nxc5 dxc5 22. Rxa5 Rxa5 23. Nb5 Qd7 24. Qb2 Bd6 25. a3 Kf7 26. g3 g5 27. gxf4 gxf4 28. Kh1 Qh3 29. Qe2 Ra4 30. Rc1 Ke7 31. Qg2 Qxg2+ 32. Kxg2 Ra8 33. Kf2 Rg8 34. Rg1 Rxg1 35. Kxg1 Kd7 36. Kf1 Be7 37. Ke2 h5 38. Na7 Bh4 39. a4 Bf6 40. Nc6 Bg7 41. Kd3 Bf6 42. Kc2 Bg7 43. Kb3 Bf6 44. a5 bxa5 45. Ka4 Kd6 46. Nxa5 Be7 47. Nb7+ Kd7 48. Kb5 1-0

[Event "XII Paracin Festival 2019"]
[Site "Paracin"]
[Date "2019.07.09"]
[Round "5.28"]
[White "Spirliadis, Achileas"]
[Black "Franklin, Samuel G A"]
[Result "0-1"]
[ECO "E73"]
[WhiteElo "2151"]
[BlackElo "2339"]
[Annotator "NA"]
[PlyCount "76"]
[EventDate "2019.07.05"]
[EventType "swiss"]
[EventCountry "SRB"]
[SourceTitle "playchess.com"]
[Source "ChessBase"]
[SourceQuality "1"]
[TimeControl "5400+30"]

1. d4 {[%emt 0:00:00]} Nf6 {[%emt 0:02:31]} 2. c4 {[%emt 0:00:00]} g6 {[%emt 0:00:03]} 3. Nc3 {[%emt 0:00:20]} Bg7 {[%emt 0:00:03]} 4. e4 {[%emt 0:00:16]} d6 {[%emt 0:00:04]} 5. Be2 {[%emt 0:00:28]} O-O {[%emt 0:00:04]} 6. Bg5 {[%emt 0:01:03]} c5 {[%emt 0:01:23]} 7. dxc5 {[%emt 0:00:35]} Qa5 {[%emt 0:00:15]} 8. Bd2 {[%emt 0:00:10]} Qxc5 {[%emt 0:00:08]} 9. Nf3 {[%emt 0:00:15]} Bg4 {[%emt 0:00:36]} 10. Be3 {[%emt 0:02:49]} Qa5 {[%emt 0:00:52]} 11. O-O {[%emt 0:01:09]} Nc6 {[%emt 0:00:58]} 12. a3 {[%emt 0:05:13]} Rfc8 {[%emt 0:03:12]} 13. b4 {[%emt 0:02:17]} Qd8 {[%emt 0:00:13]} 14. Rc1 {[%emt 0:04:43]} Qf8 {[%emt 0:11:03]} 15. c5 {[%emt 0:14:40]} dxc5 {[%emt 0:03:44]} 16. bxc5 {[%emt 0:00:43]} Nd7 {[%emt 0:07:55]} 17. Qb3 {[%emt 0:16:08]} Bxf3 {[%emt 0:02:54]} 18. Bxf3 {[%emt 0:00:26]} Rab8 {[%emt 0:09:11]} 19. Be2 {[%emt 0:15:21]} Nd4 {[%emt 0:17:40]} 20. Bxd4 {[%emt 0:01:13]} Bxd4 {[%emt 0:00:02]} 21. Qd5 {[%emt 0:12:37]} Bxc3 {[%emt 0:00:29]} 22. Rxc3 {[%emt 0:00:15]} Rc7 {[%emt 0:02:45]} 23. Bb5 {[%emt 0:06:45]} Nxc5 {[%emt 0:01:54]} 24. Qe5 {[%emt 0:03:14]} Rbc8 {[%emt 0:00:22]} 25. h4 {[%emt 0:01:35]} Qg7 {[%emt 0:02:12]} 26. Qg3 {[%emt 0:00:09]} Qd4 {[%emt 0:02:37]} 27. Rc4 {[%emt 0:02:39]} Qb2 {[%emt 0:02:58]} 28. Rb4 {[%emt 0:03:02]} Qd2 {[%emt 0:00:42]} 29. h5 {[%emt 0:01:02]} a6 {[%emt 0:01:28]} 30. Bc4 {[%emt 0:00:56]} e6 {[%emt 0:00:35]} 31. hxg6 {[%emt 0:00:27]} hxg6 {[%emt 0:00:06]} 32. e5 {[%emt 0:00:20]} a5 {[%emt 0:03:56]} 33. Rb3 {[%emt 0:04:30]} Nxb3 {[%emt 0:02:01]} 34. Bxe6 {[%emt 0:00:09]} fxe6 {[%emt 0:00:21]} 35. Qxg6+ {[%emt 0:00:21]} Kh8 {[%emt 0:03:03]} 36. Qxe6 {[%emt 0:00:04]} Nd4 {[%emt 0:02:01]} 37. Qf6+ {[%emt 0:00:13]} Kg8 {[%emt 0:00:23]} 38. g3 {[%emt 0:01:31]} Rc6 {[%emt 0:01:22]} 0-1

[Event "XII Paracin Festival 2019"]
[Site "Paracin"]
[Date "2019.07.09"]
[Round "5.29"]
[White "Ulziikhishigjargal, Ochirkhuyag"]
[Black "Lazov, Toni"]
[Result "0-1"]
[ECO "C41"]
[WhiteElo "2017"]
[BlackElo "2313"]
[Annotator "NA"]
[PlyCount "110"]
[EventDate "2019.07.05"]
[EventType "swiss"]
[EventCountry "SRB"]
[SourceTitle "playchess.com"]
[Source "ChessBase"]
[SourceQuality "1"]
[TimeControl "5400+30"]

1. e4 d6 {[%emt 0:00:58]} 2. d4 {[%emt 0:00:00]} Nf6 {[%emt 0:00:27]} 3. Nc3 {[%emt 0:00:17]} e5 {[%emt 0:00:05]} 4. Nf3 {[%emt 0:01:51]} Nbd7 {[%emt 0:00:02]} 5. Bc4 {[%emt 0:00:19]} Be7 {[%emt 0:00:07]} 6. O-O {[%emt 0:00:52]} O-O {[%emt 0:00:11]} 7. a4 {[%emt 0:03:06]} c6 {[%emt 0:00:17]} 8. Qe2 {[%emt 0:00:37]} exd4 {[%emt 0:01:45]} 9. Nxd4 {[%emt 0:00:25]} Re8 {[%emt 0:03:08]} 10. f3 {[%emt 0:12:26]} d5 {[%emt 0:11:29]} 11. exd5 {[%emt 0:14:01]} Bc5 {[%emt 0:03:53]} 12. Qf2 {[%emt 0:01:03]} Nb6 {[%emt 0:41:43]} 13. Bb3 {[%emt 0:06:34]} Nbxd5 {[%emt 0:00:32]} 14. Nxd5 {[%emt 0:04:11]} Nxd5 {[%emt 0:00:03]} 15. Bxd5 {[%emt 0:08:28]} Qxd5 {[%emt 0:00:34]} 16. c3 {[%emt 0:00:02]} Bd6 {[%emt 0:10:34]} 17. b4 {[%emt 0:09:48]} a5 {[%emt 0:01:20]} 18. Bd2 {[%emt 0:07:49]} Qh5 {[%emt 0:04:02]} 19. f4 {[%emt 0:02:36]} Bd7 {[%emt 0:02:21]} 20. Nf3 {[%emt 0:06:13]} Be6 {[%emt 0:03:34]} 21. Qh4 {[%emt 0:09:30]} Qxh4 {[%emt 0:00:51]} 22. Nxh4 {[%emt 0:00:02]} Bc4 {[%emt 0:01:12]} 23. Rfe1 {[%emt 0:05:51]} g6 {[%emt 0:00:58]} 24. Nf3 {[%emt 0:03:58]} Rxe1+ {[%emt 0:04:44]} 25. Rxe1 {[%emt 0:00:16]} f6 {[%emt 0:01:02]} 26. g3 {[%emt 0:02:07]} axb4 {[%emt 0:01:40]} 27. cxb4 {[%emt 0:00:07]} Rxa4 {[%emt 0:00:10]} 28. Re8+ {[%emt 0:00:09]} Kf7 {[%emt 0:00:33]} 29. Rh8 {[%emt 0:00:05]} Bd5 {[%emt 0:01:58]} 30. Nh4 {[%emt 0:01:40]} Kg7 {[%emt 0:03:32]} 31. Rd8 {[%emt 0:00:02]} Bxb4 {[%emt 0:00:08]} 32. Rd7+ {[%emt 0:00:11]} Kg8 {[%emt 0:00:03]} 33. Bxb4 {[%emt 0:00:12]} Rxb4 {[%emt 0:00:02]} 34. Kf2 {[%emt 0:00:16]} Rb2+ {[%emt 0:01:17]} 35. Ke3 {[%emt 0:01:02]} b5 {[%emt 0:00:29]} 36. Rd8+ {[%emt 0:00:19]} Kf7 {[%emt 0:01:00]} 37. Rd7+ {[%emt 0:00:02]} Ke6 {[%emt 0:00:21]} 38. Rxh7 {[%emt 0:00:07]} Rxh2 {[%emt 0:00:36]} 39. Rh6 {[%emt 0:00:01]} Kf7 {[%emt 0:00:54]} 40. Rh7+ {[%emt 0:00:38]} Ke6 {[%emt 0:00:28]} 41. Rh6 {[%emt 0:00:04]} b4 {[%emt 0:00:04]} 42. Rxg6 {[%emt 0:00:30]} b3 {[%emt 0:00:10]} 43. Rg8 {[%emt 0:00:04]} Kd6 {[%emt 0:00:43]} 44. Rb8 {[%emt 0:00:49]} Kc5 {[%emt 0:01:00]} 45. Nf5 {[%emt 0:00:31]} Kc4 {[%emt 0:00:25]} 46. Ne7 {[%emt 0:01:09]} b2 {[%emt 0:00:44]} 47. g4 {[%emt 0:01:06]} Kc3 {[%emt 0:00:28]} 48. Nxd5+ {[%emt 0:01:08]} cxd5 {[%emt 0:00:01]} 49. Rc8+ {[%emt 0:00:07]} Kb3 {[%emt 0:00:10]} 50. Rb8+ {[%emt 0:00:08]} Kc2 {[%emt 0:00:22]} 51. Rc8+ {[%emt 0:01:50]} Kd1 {[%emt 0:00:04]} 52. Rb8 {[%emt 0:00:05]} Kc1 {[%emt 0:00:20]} 53. Kd4 {[%emt 0:00:33]} Rd2+ {[%emt 0:00:57]} 54. Ke3 {[%emt 0:00:20]} Rg2 {[%emt 0:01:19]} 55. Kf3 {[%emt 0:00:27]} Rc2 {[%emt 0:00:17]} 0-1

[Event "XII Paracin Festival 2019"]
[Site "Paracin"]
[Date "2019.07.09"]
[Round "5.30"]
[White "Kishan, Gangolli"]
[Black "Rabrenovic, Vladan"]
[Result "0-1"]
[ECO "A41"]
[WhiteElo "2035"]
[BlackElo "2326"]
[Annotator "NA"]
[PlyCount "80"]
[EventDate "2019.07.05"]
[EventType "swiss"]
[EventCountry "SRB"]
[SourceTitle "playchess.com"]
[Source "ChessBase"]
[SourceQuality "1"]
[TimeControl "5400+30"]

1. d4 {[%emt 0:00:00]} d6 {[%emt 0:02:17]} 2. c4 {[%emt 0:00:37]} e5 {[%emt 0:00:12]} 3. Nf3 {[%emt 0:00:12]} e4 {[%emt 0:00:09]} 4. Ng5 {[%emt 0:00:23]} f5 {[%emt 0:00:11]} 5. Nc3 {[%emt 0:00:14]} h6 {[%emt 0:00:10]} 6. Nh3 {[%emt 0:00:17]} g5 {[%emt 0:00:05]} 7. g3 {[%emt 0:01:58]} Nf6 {[%emt 0:00:25]} 8. Bg2 {[%emt 0:00:24]} Bg7 {[%emt 0:00:05]} 9. f3 {[%emt 0:05:03]} Qe7 {[%emt 0:01:51]} 10. O-O {[%emt 0:01:36]} O-O {[%emt 0:02:06]} 11. Kh1 {[%emt 0:10:02]} c6 {[%emt 0:14:04]} 12. d5 {[%emt 0:01:42]} cxd5 {[%emt 0:08:02]} 13. cxd5 {[%emt 0:00:16]} Na6 {[%emt 0:00:12]} 14. Rb1 {[%emt 0:14:20]} Bd7 {[%emt 0:00:25]} 15. b4 {[%emt 0:06:22]} Rac8 {[%emt 0:01:18]} 16. Qb3 {[%emt 0:01:39]} Ng4 {[%emt 0:20:08]} 17. Nd1 {[%emt 0:07:59]} exf3 {[%emt 0:05:32]} 18. exf3 {[%emt 0:00:29]} Bb5 {[%emt 0:04:27]} 19. fxg4 {[%emt 0:09:51]} Bxf1 {[%emt 0:00:07]} 20. Bxf1 {[%emt 0:00:04]} Qe1 {[%emt 0:00:21]} 21. Kg2 {[%emt 0:12:57]} Rxc1 {[%emt 0:01:38]} 22. Rxc1 {[%emt 0:01:31]} Qd2+ {[%emt 0:00:50]} 23. Nhf2 {[%emt 0:00:40]} Qxc1 {[%emt 0:00:13]} 24. gxf5 {[%emt 0:02:16]} Rxf5 {[%emt 0:00:19]} 25. Qd3 {[%emt 0:04:29]} Qc8 {[%emt 0:13:26]} 26. Ne3 {[%emt 0:04:33]} Rf8 {[%emt 0:00:31]} 27. a3 {[%emt 0:02:34]} Qc3 {[%emt 0:01:19]} 28. Qe4 {[%emt 0:00:33]} Qe5 {[%emt 0:01:36]} 29. Qd3 {[%emt 0:01:40]} Qd4 {[%emt 0:00:14]} 30. Nf5 {[%emt 0:03:47]} Qe5 {[%emt 0:04:53]} 31. Ne3 {[%emt 0:00:50]} Nc7 {[%emt 0:01:37]} 32. Nfg4 {[%emt 0:03:07]} Qb2+ {[%emt 0:02:30]} 33. Be2 {[%emt 0:01:09]} h5 {[%emt 0:00:29]} 34. Nf2 {[%emt 0:00:13]} Qd4 {[%emt 0:00:17]} 35. Nf5 {[%emt 0:02:36]} Qxd5+ {[%emt 0:00:21]} 36. Qxd5+ {[%emt 0:00:17]} Nxd5 {[%emt 0:00:01]} 37. Nxd6 {[%emt 0:01:01]} Ne3+ {[%emt 0:00:29]} 38. Kg1 {[%emt 0:00:12]} Bd4 {[%emt 0:01:01]} 39. Bxh5 {[%emt 0:00:19]} g4 {[%emt 0:07:53]} 40. Nde4 {[%emt 0:00:51]} Nd1 {[%emt 0:00:10]} 0-1

[Event "XII Paracin Festival 2019"]
[Site "Paracin"]
[Date "2019.07.09"]
[Round "6.1"]
[White "Ratkovic, Milovan"]
[Black "Bashirli, Nail"]
[Result "1/2-1/2"]
[ECO "A45"]
[WhiteElo "2407"]
[BlackElo "2367"]
[Annotator "NA"]
[PlyCount "121"]
[EventDate "2019.07.05"]
[EventType "swiss"]
[EventCountry "SRB"]
[SourceTitle "playchess.com"]
[Source "ChessBase"]
[SourceQuality "1"]
[TimeControl "5400+30"]

1. d4 {[%emt 0:00:00]} Nf6 {[%emt 0:08:36]} 2. Bg5 {[%emt 0:00:00]} Ne4 {[%emt 0:00:06]} 3. h4 {[%emt 0:00:37]} c5 {[%emt 0:00:04]} 4. dxc5 {[%emt 0:00:22]} Qa5+ {[%emt 0:00:11]} 5. Nd2 {[%emt 0:00:24]} Nxg5 {[%emt 0:00:04]} 6. hxg5 {[%emt 0:00:13]} g6 {[%emt 0:00:28]} 7. c3 {[%emt 0:08:39]} Qxc5 {[%emt 0:04:50]} 8. Ne4 {[%emt 0:03:03]} Qe5 {[%emt 0:02:04]} 9. Rh4 {[%emt 0:00:31]} Bg7 {[%emt 0:00:52]} 10. Nf3 {[%emt 0:01:30]} Qc7 {[%emt 0:01:05]} 11. e3 {[%emt 0:00:35]} d6 {[%emt 0:04:26]} 12. Bc4 {[%emt 0:03:04]} Nc6 {[%emt 0:08:48]} 13. Qb3 {[%emt 0:12:32]} O-O {[%emt 0:06:03]} 14. Bd5 {[%emt 0:08:15]} Qb6 {[%emt 0:11:19]} 15. Qxb6 {[%emt 0:12:23]} axb6 {[%emt 0:00:17]} 16. Ke2 {[%emt 0:01:38]} Ra5 {[%emt 0:01:21]} 17. Rd1 {[%emt 0:02:39]} Rb5 {[%emt 0:13:37]} 18. Rd2 {[%emt 0:09:26]} Bd7 {[%emt 0:03:43]} 19. Bc4 {[%emt 0:01:11]} Ra5 {[%emt 0:05:13]} 20. a3 {[%emt 0:07:33]} Ne5 {[%emt 0:00:07]} 21. Nxe5 {[%emt 0:02:44]} Rxe5 {[%emt 0:00:10]} 22. Bd5 {[%emt 0:03:03]} Bb5+ {[%emt 0:04:46]} 23. Ke1 {[%emt 0:00:37]} Bc6 {[%emt 0:00:17]} 24. Bxc6 {[%emt 0:03:58]} bxc6 {[%emt 0:00:05]} 25. Rg4 {[%emt 0:00:12]} Ra8 {[%emt 0:00:20]} 26. Ke2 {[%emt 0:01:37]} b5 {[%emt 0:00:19]} 27. Ng3 {[%emt 0:00:51]} Re6 {[%emt 0:01:13]} 28. Re4 {[%emt 0:01:46]} Rxe4 {[%emt 0:00:28]} 29. Nxe4 {[%emt 0:00:06]} Ra4 {[%emt 0:00:05]} 30. f3 {[%emt 0:01:31]} Be5 {[%emt 0:00:19]} 31. Nf2 {[%emt 0:01:00]} f5 {[%emt 0:01:10]} 32. f4 {[%emt 0:02:10]} Bg7 {[%emt 0:00:12]} 33. g4 {[%emt 0:02:22]} Kf7 {[%emt 0:00:04]} 34. Kf3 {[%emt 0:00:52]} Rc4 {[%emt 0:00:57]} 35. gxf5 {[%emt 0:01:05]} gxf5 {[%emt 0:00:04]} 36. Nd3 {[%emt 0:00:32]} c5 {[%emt 0:03:43]} 37. Rh2 {[%emt 0:00:45]} e5 {[%emt 0:02:46]} 38. Ne1 {[%emt 0:02:24]} e4+ {[%emt 0:01:13]} 39. Kg3 {[%emt 0:00:14]} d5 {[%emt 0:03:28]} 40. Nc2 {[%emt 0:00:08]} Bxc3 {[%emt 0:02:15]} 41. bxc3 {[%emt 0:00:17]} Rxc3 {[%emt 0:00:04]} 42. Rxh7+ {[%emt 0:00:31]} Kg8 {[%emt 0:00:32]} 43. Rd7 {[%emt 0:00:47]} d4 {[%emt 0:01:13]} 44. Nxd4 {[%emt 0:01:04]} cxd4 {[%emt 0:00:35]} 45. Rxd4 {[%emt 0:00:22]} Rxe3+ {[%emt 0:00:42]} 46. Kh4 {[%emt 0:00:17]} Rd3 {[%emt 0:02:24]} 47. Rb4 {[%emt 0:00:08]} Rd5 {[%emt 0:07:12]} 48. a4 {[%emt 0:00:06]} bxa4 {[%emt 0:01:59]} 49. Rxa4 {[%emt 0:00:05]} Kf7 {[%emt 0:01:20]} 50. Kh5 {[%emt 0:04:52]} Rd1 {[%emt 0:01:16]} 51. g6+ {[%emt 0:00:24]} Kg7 {[%emt 0:00:31]} 52. Kg5 {[%emt 0:01:18]} Rg1+ {[%emt 0:00:31]} 53. Kxf5 {[%emt 0:00:17]} Rxg6 {[%emt 0:00:14]} 54. Ra7+ {[%emt 0:00:34]} Kh6 {[%emt 0:00:03]} 55. Kxe4 {[%emt 0:00:08]} Rb6 {[%emt 0:00:19]} 56. Ke5 {[%emt 0:01:02]} Rb5+ {[%emt 0:00:08]} 57. Kf6 {[%emt 0:00:33]} Rb6+ {[%emt 0:00:06]} 58. Kf7 {[%emt 0:00:38]} Rb5 {[%emt 0:01:06]} 59. Ra6+ {[%emt 0:00:54]} Kh5 {[%emt 0:00:34]} 60. Kf6 {[%emt 0:01:22]} Kg4 {[%emt 0:00:08]} 61. Ra4 {[%emt 0:00:11]} 1/2-1/2